[Event "GER-ch Youth-U16 2022"]
[Site "Willingen"]
[Date "2022.06.08"]
[Round "6.10"]
[White "Albert, Markus"]
[Black "Chassard, Cedric"]
[Result "1-0"]
[ECO "B23"]
[WhiteElo "2053"]
[BlackElo "2051"]
[Annotator "TA"]
[PlyCount "83"]
[EventDate "2022.06.05"]
[EventType "swiss"]
[EventRounds "9"]
[EventCountry "GER"]
[SourceTitle "playchess.com"]
[Source "ChessBase"]
[SourceQuality "1"]
[TimeControl "40/4500+30:900+30"]

{[%evp 9,83,-14,0,0,0,-6,43,45,54,26,27,44,77,47,50,41,62,78,79,35,94,96,97,90,108,84,341,340,399,385,479,501,461,484,651,651,608,569,661,637,494,488,474,499,498,469,454,481,493,473,1085,1085,1048,1034,996,1235,1317,1317,1341,1310,1265,1209,1396,1353,1276,1193,1176,1142,1391,1256,5627,4079,29983,29984,29967,29971]} 1. e4 {[%emt 0:00:00]} c5 {[%emt 0:00:00]} 2. Nc3 {[%emt 0:00:00]} d6 {[%emt 0:00:00]} 3. d4 {[%emt 0:00:00]} cxd4 {[%emt 0:00:00]} 4. Qxd4 {[%emt 0:00:00]} Nf6 {[%emt 0:00:00]} 5. b3 {[%emt 0:00:00]} a6 {[%emt 0:00:00]} 6. Bb2 {[%emt 0:00:00] B23: Closed Sicilian: Lines without g3.} e5 {[%emt 0:00:00]} 7. Qd2 {[%emt 0:00:00]} Be6 {[%emt 0:00:00]} (7... Be7 $11) 8. O-O-O $14 {[%emt 0:00:00] White is slightly better.} Be7 {[%emt 0:00:39]} 9. f3 {[%emt 0:00:00]} Nbd7 {[%emt 0:01:04]} 10. Kb1 {[%emt 0:00:00] [#]} h5 $146 {[%emt 0:05:58] Inhibits g4.} ({Predecessor:} 10... b5 11. g4 Nb6 12. Ba3 O-O 13. Nge2 d5 14. Bxe7 Qxe7 15. g5 Nh5 16. Nxd5 Nxd5 17. exd5 Bxd5 18. Qe3 Rad8 19. Bh3 f5 20. gxf6 Qxf6 21. Bg4 {½-½ (21) Tazbir,M (2529)-Krak,T (2317) Slovakia 2019}) 11. h4 {[%emt 0:09:37]} b5 {[%emt 0:08:53]} 12. Nh3 {[%emt 0:06:08]} Nb6 {[%emt 0:06:04]} 13. Ng5 {[%emt 0:13:27]} Bd7 {[%emt 0:00:53]} 14. Be2 {[%emt 0:03:27]} (14. Ba3 $5 {[%cal Ra3d6]}) 14... b4 {[%emt 0:09:56] [#]} ({Better is} 14... Rc8 $14) 15. Nd5 $1 $16 {[%emt 0:03:29] White is more active.} Nbxd5 {[%emt 0:04:06]} 16. exd5 {[%emt 0:00:17][%cal Be4d5,Bd5d6][%mdl 32]} Qb6 {[%emt 0:01:38]} 17. f4 {[%emt 0:02:39]} Ng4 {[%emt 0:02:09][%mdl 8192] A mistake that costs the game.} (17... e4 $16) 18. fxe5 $18 {[%emt 0:07:35]} dxe5 {[%emt 0:01:16]} 19. d6 {[%emt 0:03:31]} Bf6 {[%emt 0:04:36]} 20. Bxg4 {[%emt 0:05:55]} hxg4 {[%emt 0:01:34]} 21. Qd5 {[%emt 0:04:02]} O-O {[%emt 0:06:10]} 22. Qe4 {[%emt 0:03:09][%csl Gg5][%cal Re4h7]} g6 {[%emt 0:01:16]} 23. Rhf1 {[%emt 0:00:15]} ({Less strong is} 23. Bxe5 Bf5 24. Qd4 (24. Qf4 Bxe5 25. Qxe5 Qc6 $15) 24... Qxd4 25. Bxd4 Bg7 $16) 23... Bc6 {[%emt 0:01:15]} 24. Qxg4 {[%emt 0:00:38]} Qd8 {[%emt 0:02:25] [#]} 25. Nxf7 $1 {[%emt 0:08:22][%mdl 512]} Rxf7 {[%emt 0:06:53]} 26. Qxg6+ {[%emt 0:00:25]} Rg7 {[%emt 0:00:27]} 27. Qxf6 {[%emt 0:00:14]} Qxf6 {[%emt 0:00:26]} 28. Rxf6 {[%emt 0:00:07]} Rf7 {[%emt 0:00:39]} 29. Bxe5 {[%emt 0:00:49]} Re8 {[%emt 0:00:46]} (29... Rxf6 $142 30. Bxf6 Kf7) 30. Rxf7 {[%emt 0:00:44]} Kxf7 {[%emt 0:00:07][%mdl 4096] Endgame [#] KRB-KRB} 31. d7 $1 {[%emt 0:00:19]} Rd8 {[%emt 0:00:33]} (31... Bxd7 32. Rxd7+) 32. Bc7 {[%emt 0:00:20]} Rxd7 {[%emt 0:00:14]} 33. Rxd7+ {[%emt 0:00:07]} Bxd7 {[%emt 0:00:00] KB-KB} 34. Ba5 {[%emt 0:00:12]} Kg6 {[%emt 0:00:09]} 35. Bxb4 {[%emt 0:00:13]} Kh5 {[%emt 0:00:06]} 36. g3 {[%emt 0:00:16]} Kg4 {[%emt 0:00:11]} 37. Bd6 {[%emt 0:00:06]} Kf5 {[%emt 0:00:05]} 38. c4 {[%emt 0:01:15][%cal Bc2c4,Bc4c5][%mdl 32]} Ke4 {[%emt 0:00:10]} 39. h5 {[%emt 0:00:30][%cal Bh4h5,Bh5h6][%mdl 32] h6 is the strong threat.} Kd3 {[%emt 0:00:22]} 40. Kb2 {[%emt 0:00:48] Hoping for c5.} a5 {[%emt 0:00:06]} 41. h6 {[%emt 0:15:18]} Bf5 {[%emt 0:15:03]} 42. c5 {[%emt 0:00:42] Weighted Error Value: White=0.04 (flawless) /Black=0.48} 1-0

[Event "GER-ch Youth-U16 2022"]
[Site "Willingen"]
[Date "2022.06.08"]
[Round "6.11"]
[White "Heinrich, John"]
[Black "Bock, Marlon"]
[Result "1-0"]
[ECO "B34"]
[WhiteElo "2011"]
[BlackElo "1816"]
[Annotator "TA"]
[PlyCount "43"]
[EventDate "2022.06.05"]
[EventType "swiss"]
[EventRounds "9"]
[EventCountry "GER"]
[SourceTitle "playchess.com"]
[Source "ChessBase"]
[SourceQuality "1"]
[TimeControl "40/4500+30:900+30"]

{[%evp 16,43,19,0,72,70,61,72,135,133,179,168,165,153,162,139,192,52,187,107,114,151,121,119,121,111,472,479,880,368]} 1. e4 {[%emt 0:00:00]} c5 {[%emt 0:00:00]} 2. Nf3 {[%emt 0:00:00]} Nc6 {[%emt 0:00:00]} 3. d4 {[%emt 0:00:00]} cxd4 {[%emt 0:00:00]} 4. Nxd4 {[%emt 0:00:00]} Nf6 {[%emt 0:00:00]} 5. Nc3 {[%emt 0:00:00]} e5 {[%emt 0:00:00]} 6. Ndb5 {[%emt 0:00:00]} d6 {[%emt 0:00:00]} 7. Nd5 {[%emt 0:00:00]} Nxd5 {[%emt 0:00:00]} 8. exd5 {[%emt 0:00:00]} Nb8 {[%emt 0:00:00]} 9. Qf3 {[%emt 0:00:00]} Nd7 {[%emt 0:00:01] B33: Sicilian: Pelikan and Sveshnikov Variations.} (9... a6 $11 10. Qa3 b6) 10. Qc3 $16 {[%emt 0:00:00] Threatens to win with Nc7+.} Nc5 {[%emt 0:04:09]} 11. Be3 {[%emt 0:00:00] [#] Strongly threatening Bxc5.} Na6 $146 {[%emt 0:09:42]} (11... a6 $142) ({Predecessor:} 11... Be7 12. Bxc5 dxc5 13. Qxe5 O-O 14. O-O-O a6 15. Nc3 Bd6 16. Qh5 Qf6 17. Kb1 Qxf2 {½-½ (70) Rodriguez Redondo,A (2138)-Canavate Ros,A (1849) Salobrena 2021}) 12. Nxa7 {[%emt 0:00:00] White is much more active. The black rooks are badly placed.} Bd7 {[%emt 0:05:30]} (12... Nc7 $16) 13. Bxa6 $18 {[%emt 0:05:33]} bxa6 {[%emt 0:01:08]} 14. O-O {[%emt 0:10:44]} ({Much less strong is} 14. Nc6 Qc7 $16) 14... Qb8 {[%emt 0:07:06]} 15. Nc6 $36 {[%emt 0:04:25][%mdl 2048] Black is under strong pressure.} Qb5 {[%emt 0:02:03]} (15... Qb7 $16 {keeps fighting.}) 16. f4 {[%emt 0:29:23]} ({Better is} 16. Rfd1 $18) 16... f6 {[%emt 0:13:38] [#]} (16... Qxd5 $14 17. Na7 Be7) 17. Qb3 {[%emt 0:11:38]} ({Don't do} 17. fxe5 $6 dxe5 18. Rfd1 Rc8 $14) ({White should play} 17. Rfd1 $1 $18) 17... Bxc6 {[%emt 0:07:57]} 18. dxc6 {[%emt 0:00:09]} Qxc6 {[%emt 0:02:16]} 19. Qe6+ {[%emt 0:00:38]} Be7 {[%emt 0:00:38]} 20. fxe5 {[%emt 0:02:22]} Qe4 $2 {[%emt 0:01:25][%mdl 8192]} (20... Qc8 $16 {is more resistant.} 21. Qxc8+ Rxc8) 21. Rae1 {[%emt 0:01:31][%cal Oe3c5] Bc5! is the strong threat.} dxe5 {[%emt 0:03:12]} (21... Qxe5 $142 22. Qg4 Rg8) 22. Qxe7+ {[%emt 0:00:11] Weighted Error Value: White=0.25 (precise) /Black=0.81} 1-0

[Event "GER-ch Youth-U16 2022"]
[Site "Willingen"]
[Date "2022.06.08"]
[Round "6.12"]
[White "Neuber, Pascal"]
[Black "Spriestersbach, Kai"]
[Result "1-0"]
[ECO "B20"]
[WhiteElo "1802"]
[BlackElo "1948"]
[Annotator "TA"]
[PlyCount "85"]
[EventDate "2022.06.05"]
[EventType "swiss"]
[EventRounds "9"]
[EventCountry "GER"]
[SourceTitle "playchess.com"]
[Source "ChessBase"]
[SourceQuality "1"]
[TimeControl "40/4500+30:900+30"]

{[%evp 15,85,11,2,0,9,14,13,5,10,14,45,14,39,0,0,0,0,-13,-13,-13,-13,-13,0,-40,0,0,-5,-10,-10,-15,0,-2,0,0,0,0,0,0,0,0,0,0,25,0,8,8,29,27,39,-2,-15,0,0,-233,-262,-697,-236,-262,29982,-164,29983,29984,29972,856,29987,6116,3238,2981,29997,29992,29996,29997]} 1. e4 {[%emt 0:00:00]} c5 {[%emt 0:00:00]} 2. c4 {[%emt 0:00:00]} Nc6 {[%emt 0:00:00]} 3. Nc3 {[%emt 0:00:00]} g6 {[%emt 0:00:00]} 4. g3 {[%emt 0:00:00]} Bg7 {[%emt 0:00:00]} 5. Bg2 {[%emt 0:00:00]} d6 {[%emt 0:00:00]} 6. Nge2 {[%emt 0:00:00]} e5 {[%emt 0:00:00]} 7. d3 {[%emt 0:00:00]} Nge7 {[%emt 0:00:00]} 8. O-O {[%emt 0:00:00]} O-O {[%emt 0:00:00]} 9. Bg5 {[%emt 0:00:00] A36: Symmetrical English vs ...g6: 4 Bg2 Bg7.} h6 {[%emt 0:00:00]} 10. Be3 {[%emt 0:00:00]} Nd4 {[%emt 0:00:00]} 11. Qd2 {[%emt 0:00:00] The position is equal.} Kh7 {[%emt 0:00:00]} 12. f4 {[%emt 0:00:00] [#]} exf4 $146 {[%emt 0:00:00]} ({Predecessor:} 12... f5 13. fxe5 dxe5 14. Nd5 Rb8 15. Nec3 Nec6 16. Rab1 Be6 17. a3 Nb3 18. Qd1 Ncd4 {½-½ (42) Kleinert,A (1845)-Gausmann,T (1563) Gelsenkirchen 2018}) 13. Nxf4 {[%emt 0:00:00]} Rb8 {[%emt 0:00:00]} 14. Rab1 {[%emt 0:00:00]} Nec6 {[%emt 0:09:00]} 15. Nfd5 {[%emt 0:00:00]} b5 {[%emt 0:04:05]} 16. b3 {[%emt 0:00:00]} b4 {[%emt 0:00:49]} 17. Ne2 {[%emt 0:00:00]} Nxe2+ {[%emt 0:00:53]} 18. Qxe2 {[%emt 0:00:00]} Nd4 {[%emt 0:00:24]} 19. Qd2 {[%emt 0:00:00]} Be6 {[%emt 0:02:06]} 20. Nf4 {[%emt 0:01:08]} Bd7 {[%emt 0:01:40]} 21. Ne2 {[%emt 0:02:55]} Nxe2+ {[%emt 0:01:07]} 22. Qxe2 {[%emt 0:00:08]} a5 {[%emt 0:03:19]} 23. Rbd1 {[%emt 0:00:42]} Qb6 {[%emt 0:01:26]} 24. Qd2 {[%emt 0:00:18]} Bc3 {[%emt 0:03:24]} 25. Qc1 {[%emt 0:01:09]} Bg7 {[%emt 0:00:13]} 26. Qd2 {[%emt 0:04:01]} Bg4 {[%emt 0:08:00]} 27. Bf3 {[%emt 0:01:42]} Bxf3 {[%emt 0:05:21]} 28. Rxf3 {[%emt 0:00:03]} Qc6 {[%emt 0:05:28]} 29. Rdf1 {[%emt 0:00:52]} Rb7 {[%emt 0:02:13]} 30. Rf4 {[%emt 0:05:16]} Bc3 {[%emt 0:05:39]} 31. Qf2 {[%emt 0:26:54]} Kg7 {[%emt 0:02:26]} 32. g4 {[%emt 0:09:51]} Be5 {[%emt 0:02:51]} 33. Rf3 {[%emt 0:13:36]} Qd7 {[%emt 0:01:21]} 34. Bxh6+ $2 {[%emt 0:06:04]} Kxh6 $19 {[%emt 0:01:00]} 35. Qh4+ {[%emt 0:00:08]} Kg7 {[%emt 0:00:25] aiming for ...Rh8.} 36. Rh3 {[%emt 0:00:05][%csl Gh3][%cal Rh4h7]} f5 $4 {[%emt 0:01:10][%mdl 8192] [#]} (36... Re8 $19 37. Qh7+ (37. Qh6+ Kg8 $17) 37... Kf8 38. Qxg6 a4) 37. Qh7+ $1 {[%emt 0:00:18]} Kf6 {[%emt 0:00:16]} 38. g5+ $1 {[%emt 0:00:06]} Ke6 {[%emt 0:01:11]} 39. Qxg6+ {[%emt 0:00:08]} (39. exf5+ $142 Rxf5 40. Qxg6+ Ke7 41. Rh7+ Kd8 42. Rxd7+ Rxd7 43. Qxf5 Re7 44. h4) 39... Bf6 {[%emt 0:00:25]} 40. Qxf5+ {[%emt 0:00:51]} (40. gxf6 $142 d5 41. Qxf5+ Kd6 42. Qxd5+ Kc7 43. Qxc5+ Kb8 44. Qxf8+ Kc7 45. Qc5+ Qc6 46. Rh7+ Kb8 47. Qxc6) 40... Ke7 $18 {[%emt 0:00:11]} 41. Rh7+ {[%emt 0:15:12][%mdl 64] [#] Skewer} Rf7 {[%emt 0:15:07]} 42. Rxf7+ {[%emt 0:00:19]} Kxf7 {[%emt 0:00:13]} 43. Qxf6+ {[%emt 0:00:13] Weighted Error Value: White=0.23 (precise) /Black=0.64} 1-0

[Event "GER-ch Youth-U16 2022"]
[Site "Willingen"]
[Date "2022.06.08"]
[Round "6.13"]
[White "Guo, Philipp Ziming"]
[Black "Lerchl, Clemens"]
[Result "0-1"]
[ECO "B72"]
[WhiteElo "1825"]
[BlackElo "1843"]
[Annotator "NA RC COMBH"]
[PlyCount "66"]
[EventDate "2022.06.05"]
[EventType "swiss"]
[EventRounds "9"]
[EventCountry "GER"]
[SourceTitle "playchess.com"]
[Source "ChessBase"]
[SourceQuality "1"]
[TimeControl "40/4500+30:900+30"]

1. e4 {[%emt 0:00:00]} c5 {[%emt 0:00:00]} 2. Nf3 {[%emt 0:00:00]} d6 {[%emt 0:00:00]} 3. d4 {[%emt 0:00:00]} cxd4 {[%emt 0:00:00]} 4. Nxd4 {[%emt 0:00:00]} Nf6 {[%emt 0:00:00]} 5. Nc3 {[%emt 0:00:00]} g6 {[%emt 0:00:00]} 6. Be3 {[%emt 0:00:00]} Bg7 {[%emt 0:00:00]} 7. Be2 {[%emt 0:00:00]} O-O {[%emt 0:00:00]} 8. Qd2 {[%emt 0:00:00]} Nc6 {[%emt 0:00:00]} 9. O-O-O {[%emt 0:00:00]} d5 {[%emt 0:00:00]} 10. exd5 {[%emt 0:00:00]} Nxd5 {[%emt 0:00:00]} 11. Nxc6 {[%emt 0:00:00]} bxc6 {[%emt 0:00:00]} 12. Nxd5 {[%emt 0:00:00]} cxd5 {[%emt 0:00:00]} 13. Qxd5 {[%emt 0:00:00]} Qc7 {[%emt 0:00:00]} 14. Qxa8 {[%emt 0:00:00]} Bf5 {[%emt 0:00:00]} 15. Qxf8+ {[%emt 0:00:00]} Kxf8 {[%emt 0:00:00]} 16. Rd2 {[%emt 0:00:00]} Be6 {[%emt 0:00:00]} 17. Kb1 {[%emt 0:09:47]} f5 {[%emt 0:00:00]} 18. Rhd1 {[%emt 0:06:10]} Qxh2 {[%emt 0:00:00]} 19. g3 {[%emt 0:15:38]} Qg2 {[%emt 0:00:00]} 20. Bxa7 {[%emt 0:01:29]} Bxb2 {[%emt 0:02:29]} 21. f3 {[%emt 0:13:40]} Bc3 {[%emt 0:04:38]} 22. Rg1 {[%emt 0:00:10]} Qh2 {[%emt 0:00:40]} 23. Rd8+ {[%emt 0:00:25]} Kf7 {[%emt 0:00:33]} 24. Bb5 {[%emt 0:01:58]} Qh5 {[%emt 0:01:57]} 25. Be8+ {[%emt 0:03:00]} Kg7 {[%emt 0:02:15]} 26. Rd3 {[%emt 0:01:04]} Bf6 {[%emt 0:02:20]} 27. Bb6 {[%emt 0:06:44]} f4 {[%emt 0:04:12]} 28. gxf4 {[%emt 0:01:06]} Bf5 {[%emt 0:00:30]} 29. Re3 {[%emt 0:12:13]} Qh2 30. Rc1 {[%emt 0:00:06]} Qxf4 {[%emt 0:04:58]} 31. a4 {[%emt 0:07:04]} Qb8 {[%emt 0:00:58]} 32. Bxg6 {[%emt 0:02:01]} Qxb6+ 33. Rb3 {[%emt 0:00:07]} Qxb3# {[%emt 0:00:14]} 0-1

[Event "GER-ch Youth-U16 2022"]
[Site "Willingen"]
[Date "2022.06.08"]
[Round "6.14"]
[White "Ehrig, Leon Chris"]
[Black "Beyer, Lorenz"]
[Result "1-0"]
[ECO "C00"]
[WhiteElo "1890"]
[BlackElo "1512"]
[Annotator "NA RC COMBH"]
[PlyCount "59"]
[EventDate "2022.06.05"]
[EventType "swiss"]
[EventRounds "9"]
[EventCountry "GER"]
[SourceTitle "playchess.com"]
[Source "ChessBase"]
[SourceQuality "1"]
[TimeControl "40/4500+30:900+30"]

1. e4 {[%emt 0:00:00]} e6 {[%emt 0:00:00]} 2. Nf3 {[%emt 0:00:00]} d5 {[%emt 0:00:00]} 3. e5 {[%emt 0:00:00]} c5 {[%emt 0:00:00]} 4. b4 {[%emt 0:00:00]} cxb4 {[%emt 0:00:00]} 5. a3 {[%emt 0:00:00]} Nc6 {[%emt 0:00:00]} 6. axb4 {[%emt 0:00:00]} Bxb4 {[%emt 0:00:00]} 7. c3 {[%emt 0:00:00]} Ba5 {[%emt 0:00:00]} 8. d4 {[%emt 0:00:00]} f6 {[%emt 0:00:00]} 9. Bd3 {[%emt 0:00:37]} Bc7 {[%emt 0:17:40]} 10. Bf4 {[%emt 0:18:55]} f5 {[%emt 0:05:34]} 11. Ng5 {[%emt 0:19:32]} g6 {[%emt 0:08:50]} 12. Nf3 {[%emt 0:05:56]} h6 {[%emt 0:05:47]} 13. h4 {[%emt 0:03:14]} Qe7 {[%emt 0:03:40]} 14. Na3 {[%emt 0:01:20]} a6 {[%emt 0:00:57]} 15. Nb5 {[%emt 0:01:31]} Rb8 {[%emt 0:03:44]} 16. Nd6+ {[%emt 0:01:19]} Kd7 {[%emt 0:00:24]} 17. Qc2 {[%emt 0:04:24]} b5 {[%emt 0:02:07]} 18. Nxc8 {[%emt 0:03:57]} Kxc8 {[%emt 0:00:22]} 19. Rxa6 {[%emt 0:02:55]} Na5 {[%emt 0:02:55]} 20. O-O {[%emt 0:01:44]} Qd7 {[%emt 0:04:10]} 21. Ra1 {[%emt 0:02:43]} Nc4 {[%emt 0:01:42]} 22. Bxc4 {[%emt 0:01:32]} bxc4 {[%emt 0:00:20]} 23. Bc1 {[%emt 0:00:23]} Ne7 {[%emt 0:07:00]} 24. Ba3 {[%emt 0:00:13]} Nc6 {[%emt 0:01:19]} 25. Bc5 {[%emt 0:01:09]} Rb3 {[%emt 0:00:26]} 26. Nd2 {[%emt 0:00:25]} Rb5 {[%emt 0:02:09]} 27. Qa4 {[%emt 0:03:00]} Nb8 {[%emt 0:05:57]} 28. Ra7 {[%emt 0:02:12]} Rd8 {[%emt 0:00:34]} 29. Bd6 {[%emt 0:03:39]} Rb7 {[%emt 0:00:53]} 30. Rxb7 1-0

[Event "GER-ch Youth-U16 2022"]
[Site "Willingen"]
[Date "2022.06.08"]
[Round "6.15"]
[White "Tovmasyan, Minas"]
[Black "Gluma, Christian"]
[Result "1/2-1/2"]
[ECO "D02"]
[WhiteElo "1933"]
[BlackElo "2012"]
[Annotator "TA"]
[PlyCount "99"]
[EventDate "2022.06.05"]
[EventType "swiss"]
[EventRounds "9"]
[EventCountry "GER"]
[SourceTitle "playchess.com"]
[Source "ChessBase"]
[SourceQuality "1"]
[TimeControl "40/4500+30:900+30"]

{[%evp 14,99,-1,5,7,8,12,12,28,8,26,29,48,43,86,25,72,73,72,71,91,73,59,64,93,92,120,92,99,64,62,57,58,52,61,35,28,19,22,17,24,0,66,20,39,47,29,42,43,43,36,40,41,0,3,0,0,0,0,0,0,0,35,37,33,31,43,14,31,29,35,12,10,10,12,0,0,0,0,-3,0,0,0,0,0,0,0,0]} 1. d4 {[%emt 0:00:00]} d5 {[%emt 0:00:00]} 2. Nf3 {[%emt 0:00:00]} Nf6 {[%emt 0:00:00]} 3. c4 {[%emt 0:00:00]} e6 {[%emt 0:00:00]} 4. g3 {[%emt 0:00:00]} Bb4+ {[%emt 0:00:00]} 5. Bd2 {[%emt 0:00:00]} Be7 {[%emt 0:00:00]} 6. Bg2 {[%emt 0:00:00]} O-O {[%emt 0:00:00]} 7. b3 {[%emt 0:00:12]} c6 {[%emt 0:00:00]} 8. O-O {[%emt 0:00:24]} Nbd7 {[%emt 0:00:00] E11: Bogo-Indian.} 9. Bc3 {[%emt 0:04:58]} Ne4 {[%emt 0:06:58]} 10. Bb2 {[%emt 0:00:31]} f5 {[%emt 0:01:54]} 11. Nbd2 {[%emt 0:01:58]} Qe8 {[%emt 0:04:19]} 12. Ne1 {[%emt 0:06:05]} Ndf6 {[%emt 0:05:25]} 13. Nd3 {[%emt 0:05:14]} Qh5 {[%emt 0:06:25] [#]} 14. Nxe4 $146 {[%emt 0:13:54]} (14. Nf3 $16) ({Predecessor:} 14. Nf3 g5 15. Nfe5 Bd7 16. f3 Nd6 17. Qd2 Nf7 18. Qe3 Be8 19. Nc5 Bxc5 20. dxc5 {1-0 (41) Weissbrod,P-Thieme Garmann,A Koblenz 1990}) 14... Nxe4 {[%emt 0:02:11]} (14... dxe4 $11 15. Ne5 Nd7) 15. f3 $16 {[%emt 0:11:34]} Nd6 {[%emt 0:09:35][%cal Be4d6,Bd6e8,Be8f6][%mdl 32]} 16. c5 {[%emt 0:07:52]} Ne8 {[%emt 0:04:14]} 17. Bc1 {[%emt 0:05:58]} Nf6 {[%emt 0:03:25]} 18. Bf4 {[%emt 0:03:27]} Bd7 {[%emt 0:05:01]} 19. Qd2 {[%emt 0:01:56]} Be8 {[%emt 0:04:36]} 20. b4 {[%emt 0:01:25]} Nd7 {[%emt 0:02:58]} 21. Ne5 {[%emt 0:06:34]} g5 {[%emt 0:03:46]} 22. Nxd7 {[%emt 0:01:18]} Bxd7 {[%emt 0:01:02]} 23. Be5 {[%emt 0:00:05]} Bf6 {[%emt 0:01:33]} 24. f4 {[%emt 0:03:00]} Bxe5 {[%emt 0:03:09]} 25. dxe5 {[%emt 0:01:38]} gxf4 {[%emt 0:02:23]} 26. Rxf4 {[%emt 0:00:06]} Qg6 {[%emt 0:01:40]} 27. Raf1 {[%emt 0:02:10][%cal Oe2e4,Ba1f1,Bf1f5,Bf5g5,Bg5g3,Bg3f3,Bf3f8][%mdl 32]} Be8 {[%emt 0:01:16]} ({Black should try} 27... Qg7 $11) 28. g4 {[%emt 0:02:37] White is more active.} (28. e4 $14 {feels stronger.}) 28... Qg7 {[%emt 0:05:03]} 29. gxf5 {[%emt 0:01:48]} exf5 {[%emt 0:05:00]} 30. Rxf5 {[%emt 0:00:12]} Rxf5 {[%emt 0:01:09]} 31. Rxf5 {[%emt 0:00:01] [#] And now Rg5 would win.} Bg6 $1 {[%emt 0:00:19]} 32. Rg5 {[%emt 0:01:26] Hoping for h4.} h6 {[%emt 0:02:46]} 33. Rg3 {[%emt 0:00:44] h4 is the strong threat.} (33. Rg4 $5 {[%cal Rh2h4]}) 33... Kh7 $1 {[%emt 0:01:23]} 34. Qf4 {[%emt 0:00:56]} Rf8 {[%emt 0:03:12]} 35. Qg4 {[%emt 0:00:05]} Re8 {[%emt 0:00:21]} 36. e6 {[%emt 0:03:14]} Qa1+ {[%emt 0:01:41]} 37. Kf2 {[%emt 0:00:24] The board is on fire.} Qf6+ {[%emt 0:00:11]} 38. Rf3 {[%emt 0:01:52]} Qxe6 {[%emt 0:00:33]} 39. Qxe6 {[%emt 0:00:01]} Rxe6 $14 {[%emt 0:00:08][%mdl 4096] Endgame KRB-KRB} 40. Rf8 {[%emt 0:00:31]} Be8 {[%emt 0:00:57]} 41. Bh3 {[%emt 0:00:00]} Re7 {[%emt 0:00:00]} 42. Rf3 {[%emt 0:00:56]} Bd7 {[%emt 0:00:00] The position is equal.} 43. Bxd7 {[%emt 0:02:02]} Rxd7 $11 {[%emt 0:00:00] KR-KR} 44. Ra3 {[%emt 0:03:35]} a6 {[%emt 0:00:00]} 45. Rg3 {[%emt 0:02:25]} Re7 {[%emt 0:00:00]} 46. Kf3 {[%emt 0:02:19]} Rf7+ {[%emt 0:03:13]} 47. Ke3 {[%emt 0:00:53]} Re7+ {[%emt 0:01:26]} 48. Kd3 {[%emt 0:00:06]} Re4 {[%emt 0:01:39]} 49. a3 {[%emt 0:00:35]} a5 {[%emt 0:02:20]} 50. bxa5 {[%emt 0:04:29] Weighted Error Value: White=0.12 (very precise) /Black=0.10 (very precise)} 1/2-1/2